bitfinex-derivatives/quotes_SOLF0:USTF0_20260203
["timestamp","ask_amount","ask_price","bid_price","bid_amount"]
[1770128873468,7.38136497,103.2,103.11,523.0458]
[1770128873666,7.38136497,103.2,103.13,8.735]
[1770128873862,7.38136497,103.19,103.13,8.735]
[1770128874062,7.38136497,103.19,103.11,387.14]
[1770128874664,7.38136497,103.18,103.11,395.8765]
[1770128875864,7.38136497,103.18,103.12,8.7359]
[1770128877065,7.38136497,103.18,103.13,8.7351]
[1770128877561,7.38136497,103.18,103.12,8.7358]
[1770128877864,7.38136497,103.18,103.11,387.14]
[1770128879466,7.38136497,103.18,103.13,8.735]
[1770128879863,7.38136497,103.18,103.11,387.14]
[1770128880065,7.38136497,103.18,103.12,8.7352]
[1770128880261,316.2023,103.22,103.13,135.8775]
[1770128880262,69.37879257,103.22,103.13,135.8775]
[1770128880466,7.37879257,103.21,103.12,522.8909]
[1770128880662,7.37879257,103.21,103.13,8.7349]
[1770128880867,7.37879257,103.19,103.13,8.7349]
[1770128881468,7.37879257,103.19,103.14,8.7339]
[1770128882366,9.76048457,103.18,103.11,387.0]
[1770128882566,9.76048457,103.2,103.12,138.29985476]
[1770128882867,9.76048457,103.2,103.12,2.40735476]
[1770128883066,7.35312981,103.19,103.12,2.40735476]
[1770128884569,16.08322981,103.19,103.13,8.7344]
[1770128884765,7.34765953,103.17,103.11,387.0]
[1770128884972,2.40735476,103.16,103.11,387.0]
[1770128885767,7.34765953,103.17,103.11,387.0]
[1770128886473,9.75511591,103.17,103.11,387.0]
[1770128886969,18.46628689,103.19,103.11,389.40745638]
[1770128887369,2.40745638,103.17,103.11,387.0]
[1770128887575,9.7226229,103.17,103.1,18.25269039]
[1770128887773,9.7226229,103.17,103.1,9.51589039]
[1770128887973,7.31516652,103.17,103.1,135.9189]
[1770128888275,7.31516652,103.17,103.12,8.7359]
[1770128888972,7.31516652,103.17,103.11,8.7366]
[1770128889366,7.31516652,103.17,103.1,386.92]
[1770128889576,7.31516652,103.17,103.11,8.7366]
[1770128889577,2.40745638,103.16,103.11,8.7366]
[1770128890177,18.4546229,103.17,103.11,8.7366]
[1770128890371,16.04716652,103.17,103.11,8.7366]
[1770128892572,16.03788724,103.16,103.1,395.6576]
[1770128893575,7.28161998,103.18,103.11,8.7368]
[1770128893775,7.28161998,103.18,103.1,386.92]
[1770128894278,7.28161998,103.18,103.12,8.7358]
[1770128895379,7.33253305,103.17,103.12,8.7358]
[1770128897268,7.33253305,103.17,103.11,8.7366]
[1770128897670,7.33253305,103.17,103.1,386.92]
[1770128897876,7.33253305,103.17,103.12,8.7357]
[1770128898074,7.33253305,103.17,103.1,386.92]
[1770128899073,7.33253305,103.17,103.11,8.7367]
[1770128899578,7.3328498,103.16,103.11,8.7367]
[1770128901084,7.3328498,103.16,103.1,395.6575]
[1770128902079,7.35127448,103.15,103.05,135.9757]
[1770128902276,7.35127448,103.15,103.06,386.92]
[1770128902678,7.35127448,103.15,103.08,8.7392]
[1770128902878,7.35127448,103.15,103.06,386.92]
[1770128902879,7.35127448,103.15,103.06,522.8913]
[1770128903083,7.35127448,103.15,103.07,135.9576]
[1770128903980,7.35127448,103.15,103.09,8.7383]
[1770128904979,7.35751361,103.14,103.08,8.7392]
[1770128905175,7.35751361,103.14,103.06,396.58230467]
[1770128905481,7.38384935,103.12,103.06,395.661]
[1770128905682,7.38384935,103.12,103.06,386.92]
[1770128905978,7.38384935,103.12,103.07,8.74]
[1770128906683,7.38384935,103.14,103.06,386.92]
[1770128907771,7.38384935,103.14,103.06,386.96]
[1770128908185,7.38384935,103.14,103.08,8.7393]
[1770128909383,7.38384935,103.14,103.07,8.74]
[1770128909783,7.41902998,103.12,103.04,8.742]
[1770128910081,7.41902998,103.1,103.02,33.88928165]
[1770128910285,7.41902998,103.08,103.02,33.88928165]
[1770128910589,2.41188214,103.1,103.04,18.04140499]
[1770128910982,2.41188214,103.1,103.04,26.78400499]
[1770128911885,2.41188214,103.08,103.04,18.04140499]
[1770128912285,9.83186166,103.08,103.04,18.04140499]
[1770128913282,2.41188214,103.06,103.04,18.04140499]
[1770128913484,2.41188214,103.08,103.04,18.04140499]
[1770128915384,2.41188214,103.1,103.04,18.04140499]
[1770128916081,9.7466692,103.12,103.05,8.7419]
[1770128916485,9.7466692,103.12,103.06,8.7409]
[1770128917491,2.41188214,103.13,103.07,8.7401]
[1770128917689,9.76923213,103.13,103.07,8.7401]
[1770128917988,9.76923213,103.13,103.06,135.9718]
[1770128918388,9.76923213,103.13,103.05,523.0605]
[1770128919489,9.76923213,103.13,103.07,8.7401]
[1770128920494,7.35908052,103.12,103.06,8.7409]
[1770128920694,2.41188214,103.11,103.06,8.7409]
[1770128923500,7.35908052,103.12,103.07,8.74]
[1770128924895,2.41188214,103.13,103.06,135.9711]
[1770128925099,2.41188214,103.13,103.07,135.9587]
[1770128926300,2.41188214,103.13,103.09,8.7382]
[1770128927502,9.7384918,103.14,103.09,8.7382]
[1770128934309,7.32524347,103.13,103.08,8.7391]
[1770128934709,7.32524347,103.13,103.06,135.9711]
[1770128934903,7.32524347,103.13,103.09,8.7379]
[1770128935808,7.32524347,103.13,103.08,8.7393]
[1770128939012,11.14618214,103.14,103.05,8.7418]
[1770128939013,16.03558851,103.11,103.05,8.7418]
[1770128939210,135.8603,103.15,103.05,8.7418]
[1770128939211,9.71047065,103.13,103.05,138.39588214]
[1770128939411,9.71047065,103.13,103.05,525.43588214]
[1770128939710,9.71092079,103.15,103.07,2.41188214]
[1770128940311,16.03343865,103.14,103.08,8.739]
[1770128941717,7.29903865,103.14,103.08,8.739]
[1770128945219,7.29903865,103.14,103.09,8.7384]
[1770128945419,7.29903865,103.14,103.07,138.36938214]
[1770128945718,7.29903865,103.14,103.09,8.7384]
[1770128946918,7.29903865,103.14,103.08,8.7392]
[1770128948018,9.74797468,103.13,103.07,8.74]
[1770128948527,7.33918561,103.12,103.07,8.74]
[1770128948717,8.7345,103.14,103.06,267.28878907]
[1770128948718,9.74797468,103.11,103.06,8.7409]
[1770128948922,7.33918561,103.1,103.02,535.0068231]
[1770128949320,2.40878907,103.11,103.04,135.9968]
[1770128949824,7.33918561,103.12,103.07,8.74]
[1770128950223,18.49844416,103.14,103.08,8.739]
[1770128950426,9.76404416,103.14,103.08,8.739]
[1770128950816,18.49854416,103.14,103.08,8.739]
[1770128951724,9.76404416,103.14,103.08,8.739]
[1770128952130,7.35525509,103.14,103.09,8.7384]
[1770128955726,7.35525509,103.14,103.1,8.7376]
[1770128958031,9.76404416,103.14,103.09,8.7384]
[1770128958331,9.76404416,103.14,103.07,135.9574]
[1770128959429,9.76404416,103.14,103.1,8.7374]
[1770128964135,9.76404416,103.14,103.11,8.7367]
[1770128964634,9.76404416,103.14,103.1,8.7375]
[1770128967636,7.31275185,103.13,103.06,525.41998907]
[1770128968433,7.31275185,103.13,103.09,8.7384]
[1770128972243,2.40878907,103.14,103.09,8.7384]
[1770128972742,9.70297514,103.15,103.09,8.7384]
[1770128972942,7.29418607,103.15,103.08,138.35398907]
[1770128973635,2.40878907,103.16,103.12,8.7359]
[1770128974045,7.28925551,103.17,103.12,8.7359]
[1770128975540,9.68614598,103.16,103.11,8.7367]
[1770128975736,9.68614598,103.16,103.09,522.9516]
[1770128976643,9.68614598,103.16,103.11,8.7367]
[1770128977144,9.68614598,103.16,103.09,522.9516]
[1770128977344,9.68614598,103.16,103.11,8.7367]
[1770128977843,9.68614598,103.16,103.12,8.7357]
[1770128979337,7.27735691,103.16,103.12,8.7357]
[1770128979534,2.40878907,103.19,103.11,522.8825]
[1770128979737,7.2784524,103.21,103.14,138.26918907]
[1770128979941,7.2784524,103.21,103.14,2.40878907]
[1770128980136,2.40878907,103.22,103.11,135.9025]
[1770128980137,9.68724147,103.18,103.11,135.9025]
[1770128980340,2.40878907,103.16,103.1,135.9171]
[1770128980542,2.40878907,103.14,103.09,386.98]
[1770128980742,2.40878907,103.14,103.09,395.7184]
[1770128981238,2.40878907,103.14,103.09,8.7384]
[1770128981443,7.36351496,103.13,103.07,8.7394]
[1770128981642,2.40878907,103.12,103.07,8.7394]
[1770128983046,9.77230403,103.12,103.07,8.7394]
[1770128983541,7.47936458,103.16,103.11,8.736]
[1770128983745,9.88815365,103.16,103.08,135.9445]
[1770128985447,7.47936458,103.15,103.1,8.7375]
[1770128988257,7.47936458,103.15,103.11,8.7368]
[1770128988444,2.40878907,103.16,103.11,8.7368]
[1770128989046,9.72613798,103.16,103.11,8.7368]
[1770128989348,7.31734891,103.16,103.11,8.7368]
[1770128989549,9.72613798,103.16,103.11,8.7368]
[1770128992752,9.72613798,103.16,103.12,8.7358]
[1770128992954,2.40878907,103.16,103.12,8.7358]
[1770128993145,7.31850012,103.18,103.12,135.8916]
[1770128993452,2.40878907,103.17,103.13,8.735]
[1770128996750,9.72931008,103.17,103.13,8.735]
[1770128996944,7.32052101,103.16,103.09,135.9322]
[1770128997444,7.32052101,103.16,103.12,8.7357]
[1770128997852,2.40878907,103.17,103.12,8.7357]
[1770128998153,9.7356318,103.17,103.12,8.7357]
[1770129000253,18.4674318,103.17,103.12,8.7357]
[1770129000454,7.34258666,103.14,103.06,138.36968907]
[1770129000753,9.75137573,103.18,103.1,135.9132]
[1770129001057,9.75137573,103.18,103.12,8.7358]
[1770129001254,7.34258666,103.16,103.08,135.9452]
[1770129001558,2.40878907,103.18,103.07,135.9577]
[1770129001559,9.83600006,103.14,103.07,135.9577]
[1770129001755,9.83600006,103.14,103.09,8.7384]
[1770129001951,2.40878907,103.12,103.05,522.902]
[1770129002254,7.42721099,103.12,103.05,135.982]
[1770129002460,2.40878907,103.13,103.06,138.38078907]
[1770129002653,2.40878907,103.13,103.07,135.9589]
[1770129002855,2.40878907,103.13,103.08,8.7393]
[1770129003255,9.83600006,103.13,103.08,8.7393]
[1770129003653,7.46649462,103.12,103.06,8.7403]
[1770129003958,7.46649462,103.12,103.06,135.9716]
[1770129004155,9.87528369,103.14,103.08,135.9456]
[1770129004352,2.40878907,103.14,103.08,135.9456]
[1770129004553,2.40878907,103.14,103.07,135.9589]
[1770129004757,9.87528369,103.14,103.09,8.7377]
[1770129004959,9.87528369,103.14,103.06,138.38038907]
[1770129005363,9.87528369,103.14,103.07,135.958]
[1770129005957,9.87528369,103.14,103.04,135.9897]
[1770129005958,2.40878907,103.12,103.04,135.9897]
[1770129006166,9.83270773,103.1,103.04,135.9897]
[1770129006563,9.83488498,103.1,103.04,135.9897]
[1770129006969,7.42391866,103.15,103.07,135.9554]
[1770129007160,9.83488498,103.15,103.09,135.9315]
[1770129007554,2.41096632,103.13,103.08,386.96]
[1770129008261,2.41096632,103.17,103.11,0.19670452]
[1770129008463,2.41096632,103.17,103.12,0.19670452]
[1770129008665,2.41096632,103.17,103.12,8.93250452]
[1770129009065,2.41096632,103.17,103.1,0.19670452]
[1770129009268,143.23024021,103.21,103.08,525.31296632]
[1770129009269,2.41096632,103.15,103.08,395.89560452]
[1770129009567,2.41096632,103.13,103.08,395.89560452]
[1770129009755,2.41096632,103.15,103.09,9.07296228]
[1770129009959,2.41096632,103.15,103.09,0.33486228]
[1770129010156,3.75459736,103.14,103.09,9.07336228]
[1770129010661,6.16556368,103.13,103.09,8.7385]
[1770129010861,3.75459736,103.12,103.07,8.7395]
[1770129011258,6.16556368,103.11,103.05,386.98]
[1770129011459,2.41096632,103.11,103.06,0.3252679]
[1770129013066,2.41096632,103.11,103.06,9.0662679]
[1770129013564,2.41096632,103.11,103.07,8.7402]
[1770129013771,8.7344,103.14,103.08,0.32004036]
[1770129013772,6.16556368,103.14,103.08,0.32004036]
[1770129014664,6.16556368,103.14,103.08,9.05934036]
[1770129015057,3.75459736,103.13,103.06,2.73100668]
[1770129015256,3.75459736,103.13,103.07,8.7401]
[1770129017165,3.75459736,103.13,103.07,9.0180608]
[1770129017369,6.16556368,103.12,103.06,8.7409]
[1770129017569,6.16556368,103.12,103.06,9.00592196]
[1770129017770,6.16556368,103.12,103.06,0.26502196]
[1770129018671,6.16556368,103.12,103.07,8.7401]
[1770129018871,6.16556368,103.12,103.07,9.00512196]
[1770129019272,6.16556368,103.12,103.07,0.26502196]
[1770129019570,3.75459736,103.19,103.11,0.26370413]
[1770129019767,6.16556368,103.19,103.12,2.67467045]
[1770129019964,3.75459736,103.19,103.13,0.26370413]
[1770129020164,3.75459736,103.18,103.11,0.26370413]
[1770129020369,3.75459736,103.16,103.09,254.31900536]
[1770129020869,3.75459736,103.16,103.1,0.25900536]
[1770129021270,6.105359,103.18,103.11,0.25900536]
[1770129021968,6.105359,103.2,103.13,0.2569209]
[1770129022274,3.69439268,103.19,103.13,0.2569209]
[1770129022880,62.0,103.21,103.11,8.9929209]
[1770129022881,3.69439268,103.18,103.11,8.9929209]
[1770129023174,3.69439268,103.18,103.09,389.9917]
[1770129023175,3.69439268,103.17,103.09,254.06]
[1770129023468,3.69439268,103.17,103.1,0.2569209]
[1770129023670,3.69439268,103.17,103.08,0.12511872]
[1770129024271,3.73747323,103.16,103.09,8.7376]
[1770129024466,3.73747323,103.15,103.08,0.12511872]
[1770129024868,3.73747323,103.15,103.08,8.86441872]
[1770129026066,3.73747323,103.15,103.06,135.9612]
[1770129026067,3.74980526,103.14,103.06,0.10045465]
[1770129026271,3.74980526,103.13,103.06,0.10045465]
[1770129026472,3.74980526,103.12,103.04,0.10045465]
[1770129026776,3.74980526,103.12,103.03,0.10045465]
[1770129026777,3.74980526,103.11,103.03,0.10045465]
[1770129027274,3.74980526,103.09,103.01,0.10045465]
[1770129027470,3.74980526,103.09,103.01,136.13775465]
[1770129027676,3.74980526,103.09,103.02,0.09971161]
[1770129027879,3.74980526,103.09,103.02,8.84401161]
[1770129028972,123.5368,103.11,103.03,8.84291161]
[1770129029179,123.5368,103.11,103.01,136.0374]
[1770129029180,3.75017678,103.1,103.04,0.09971161]
[1770129030667,3.75017678,103.1,103.03,8.7428]
[1770129031081,3.75017678,103.1,103.04,8.7427]
[1770129031575,3.75017678,103.1,103.03,0.1668509]
[1770129031779,3.75017678,103.1,103.04,8.7427]
[1770129032278,3.75017678,103.1,103.04,0.19416138]
[1770129032680,3.75017678,103.1,103.02,136.0245]
[1770129032681,3.75017678,103.1,103.02,0.19416138]
[1770129033182,3.75017678,103.1,103.03,8.7434]
[1770129033783,3.75017678,103.1,103.04,8.7426]
[1770129034482,3.75017678,103.1,103.05,8.7418]
[1770129034781,3.75017678,103.1,103.04,0.21060705]
[1770129034985,3.75017678,103.1,103.03,8.7428]
[1770129035284,3.75017678,103.1,103.02,0.21060705]
[1770129035681,3.75017678,103.1,103.01,387.08]
[1770129035888,3.75017678,103.1,103.0,0.22045967]
[1770129035889,3.69439268,103.09,103.0,0.22045967]
[1770129036083,3.69439268,103.07,102.98,136.28695967]
[1770129036482,3.69439268,103.07,103.0,0.22045967]
[1770129037787,3.69439268,103.06,103.01,8.7452]
[1770129037980,3.69439268,103.09,103.01,0.21309045]
[1770129038181,3.69439268,103.08,103.01,0.21309045]
[1770129039086,10.14128557,103.1,103.02,136.23739045]
[1770129039385,147.9164749,103.16,103.04,0.21309045]
[1770129039386,3.69439268,103.12,103.04,0.21309045]
[1770129039786,3.69439268,103.11,103.04,0.21309045]
[1770129040487,3.69439268,103.09,102.99,136.35101729]
[1770129040690,3.69439268,103.09,103.0,136.33691729]
[1770129041386,3.69439268,103.11,103.03,136.29751729]
[1770129042089,3.69439268,103.11,103.06,8.7408]
[1770129042791,3.69439268,103.11,103.05,8.7418]
[1770129042988,3.69439268,103.11,103.04,0.32162435]
[1770129043687,3.69439268,103.11,103.04,9.06432435]
[1770129043888,3.69439268,103.11,103.04,8.7427]
[1770129044487,3.69439268,103.11,103.04,136.33139237]
[1770129044688,3.69439268,103.12,103.05,0.33509237]
[1770129046388,3.69439268,103.12,103.06,8.7407]
[1770129046590,72.14128557,103.14,103.06,0.34215485]
[1770129046791,3.69439268,103.19,103.11,0.34215485]
[1770129046985,3.69439268,103.19,103.13,0.34215485]
[1770129047192,3.69439268,103.22,103.15,0.34215485]
[1770129047494,3.69439268,103.22,103.13,0.34174342]
[1770129047690,3.69439268,103.22,103.13,136.22054342]
[1770129047988,3.69439268,103.22,103.14,136.20414342]
[1770129048189,3.69439268,103.25,103.18,0.34174342]
[1770129048389,3.69439268,103.25,103.15,0.34174342]
[1770129048787,3.69439268,103.23,103.15,0.34174342]
[1770129049191,135.7225,103.25,103.15,0.34174342]
[1770129049192,3.69439268,103.25,103.17,0.34174342]
[1770129049390,3.69439268,103.25,103.17,136.16854342]
[1770129049587,3.69439268,103.25,103.18,136.08652947]
[1770129049788,3.69439268,103.25,103.18,144.81692947]
[1770129049991,3.69439268,103.25,103.18,9.00322947]
[1770129050191,3.69439268,103.25,103.18,0.27282947]
[1770129050593,3.69439268,103.25,103.16,8.732]
[1770129050985,3.69439268,103.25,103.17,8.7312]
[1770129051190,3.69439268,103.25,103.17,9.00183034]
[1770129051792,3.69439268,103.25,103.17,0.27063034]
[1770129051997,3.670079,103.24,103.15,8.99066516]
[1770129052390,3.670079,103.23,103.15,0.25786516]
[1770129052586,3.670079,103.22,103.13,0.25786516]
[1770129052891,3.67008447,103.18,103.09,8.7378]
[1770129053091,3.67008447,103.18,103.08,136.19680892]
[1770129053092,3.67008447,103.16,103.08,0.25770892]
[1770129053493,3.67008447,103.15,103.08,0.25770892]
[1770129054091,3.67572195,103.14,103.06,0.24643395]
[1770129055099,3.67572195,103.12,103.03,0.24643395]
[1770129055695,3.66136723,103.1,103.03,0.24643395]
[1770129057597,3.66136723,103.1,103.01,136.027]
[1770129057794,3.66136723,103.1,103.02,136.0246]
[1770129058494,3.66136723,103.1,103.01,136.30578644]
[1770129058696,3.66136723,103.1,103.02,136.30268644]
[1770129058896,62.0,103.12,103.05,0.27878644]
[1770129059096,3.65954571,103.13,103.05,9.02038644]
[1770129059389,3.65954571,103.13,103.05,136.26298644]
[1770129059593,3.66059447,103.16,103.08,0.27668892]
[1770129059998,3.66059447,103.16,103.08,9.01568892]
[1770129060201,3.66059447,103.14,103.05,376.61668892]
[1770129060394,3.66059447,103.14,103.05,0.27668892]
[1770129060599,3.66059447,103.14,103.06,136.24738892]
[1770129060801,3.66059447,103.14,103.07,136.23328892]
[1770129061100,3.66059447,103.14,103.06,135.9707]
[1770129061101,3.66059447,103.2,103.13,8.735]
[1770129061602,10.10748736,103.2,103.1,272.14431087]
[1770129061803,3.64103349,103.17,103.07,0.31581087]
[1770129062104,3.64103349,103.15,103.07,0.31581087]
[1770129062597,3.64103349,103.14,103.06,8.7403]
[1770129062799,3.64103349,103.13,103.05,387.04]
[1770129063000,3.64103349,103.13,103.04,0.31581087]
[1770129063200,6.44689289,103.1,103.01,523.39321087]
[1770129063399,135.8834,103.13,103.04,0.31581087]
[1770129063400,3.64103349,103.13,103.04,0.31581087]
[1770129063597,3.64103349,103.13,103.04,136.31401087]
[1770129063798,3.64103349,103.13,103.05,8.7416]
[1770129064497,3.61963819,103.08,102.98,136.42520148]
[1770129064899,3.61963819,103.08,102.99,0.35860148]
[1770129065404,10.06335508,103.11,103.02,136.40188116]
[1770129065601,3.61646219,103.1,103.02,136.40188116]
[1770129065905,3.61646219,103.08,102.99,0.37848116]
[1770129066296,3.61646219,103.06,102.98,8.7473]
[1770129066699,3.61646219,103.06,102.98,136.45378116]
[1770129067203,3.61646219,103.09,103.0,0.37848116]
[1770129067400,3.61646219,103.09,103.0,136.42868116]
[1770129067794,3.61646219,103.09,103.01,0.41708716]
[1770129068404,135.8946,103.12,103.04,0.41708716]
[1770129068405,3.61646219,103.12,103.04,0.41708716]
[1770129068602,3.61646219,103.12,103.05,136.40058716]
[1770129068807,3.61646219,103.15,103.06,136.38668716]
[1770129069002,3.61646219,103.18,103.1,136.33648716]
[1770129069308,3.61646219,103.17,103.09,136.34458716]
[1770129069496,3.61646219,103.17,103.11,8.7365]
[1770129069807,3.61646219,103.17,103.07,136.25620962]
[1770129070000,3.61646219,103.17,103.09,8.7381]
[1770129070001,3.64978411,103.16,103.09,8.7381]
[1770129070203,3.64978411,103.19,103.11,136.20290962]
[1770129070398,3.64978411,103.19,103.12,136.19010962]
[1770129070608,10.10753805,103.22,103.13,135.8795]
[1770129070814,3.64978411,103.21,103.14,136.16470962]
[1770129071108,3.64978411,103.21,103.14,0.29830962]
[1770129071504,3.64978411,103.21,103.11,136.20290962]
[1770129071702,3.94200945,103.19,103.11,0.29830962]
[1770129072005,3.94200945,103.18,103.09,269.8]
[1770129072207,3.94200945,103.18,103.1,135.9194]
[1770129072406,3.94200945,103.18,103.09,405.7308]
[1770129072802,3.94200945,103.18,103.1,8.7374]
[1770129073011,10.39976339,103.18,103.09,269.8]
[1770129073504,3.94200945,103.17,103.1,135.9185]
[1770129073710,4.03588215,103.19,103.09,269.8]
[1770129073911,12.76618215,103.19,103.09,278.5378]
[1770129074105,4.03588215,103.18,103.09,278.5378]
[1770129074410,4.03588215,103.18,103.1,8.7372]
[1770129075010,4.03588215,103.18,103.09,269.8]
[1770129076208,12.69279678,103.2,103.11,8.7365]
[1770129076716,3.96299678,103.23,103.13,135.8787]
[1770129077111,3.96299678,103.23,103.12,135.8923]
[1770129078106,3.95560781,103.21,103.13,8.7349]
[1770129078310,3.95560781,103.21,103.1,142.37635394]
[1770129078311,3.95560781,103.2,103.1,135.9186]
[1770129078813,3.95560781,103.18,103.1,8.7375]
[1770129079316,3.95560781,103.21,103.11,135.9063]
[1770129079708,3.95560781,103.21,103.1,142.37505394]
[1770129079904,3.95429472,103.16,103.06,135.9639]
[1770129080113,3.95429472,103.16,103.05,135.9759]
[1770129080511,8.7336,103.15,103.07,8.7401]
[1770129080711,10.41204866,103.16,103.06,135.9693]
[1770129080912,3.95429472,103.16,103.06,135.9693]
[1770129081410,12.68689472,103.16,103.08,8.7391]
[1770129081714,139.79498885,103.15,103.04,522.9687]
[1770129082109,8.7351,103.13,103.06,8.7403]
[1770129082413,139.84748885,103.11,103.0,136.0456]
[1770129082604,139.84748885,103.11,102.99,507.7138]
[1770129082605,3.94078885,103.09,102.99,507.7138]
[1770129083312,12.67968885,103.09,103.0,136.0497]
[1770129083515,124.39794471,103.12,103.02,136.0247]
[1770129083707,3.92019077,103.12,103.02,136.0247]
[1770129083913,8.7374,103.11,103.03,8.7435]
[1770129084111,3.92019077,103.12,103.02,136.0247]
[1770129084313,12.65619077,103.12,103.04,8.7426]
[1770129084512,3.92019077,103.12,103.04,8.7426]
[1770129084712,3.92019077,103.12,103.03,136.0113]
[1770129085112,12.65619077,103.12,103.05,8.7418]
[1770129085314,12.65619077,103.12,103.03,136.0113]
[1770129085609,3.93428375,103.15,103.07,8.7401]
[1770129085808,3.93428375,103.14,103.03,523.0113]
[1770129086414,3.93428375,103.13,103.03,387.0]
[1770129086716,3.93428375,103.12,103.03,387.0]
[1770129087017,10.39203769,103.12,103.03,387.0]
[1770129087216,135.8841,103.13,103.03,387.0]
[1770129087217,3.93428375,103.13,103.03,523.0113]
[1770129087415,3.93428375,103.13,103.05,135.9844]
[1770129087812,10.39163006,103.16,103.06,135.9713]
[1770129088013,6.45775394,103.16,103.06,135.9713]
[1770129088213,3.93387612,103.14,103.04,135.9966]
[1770129088410,3.93387612,103.14,103.03,387.0]
[1770129088411,3.93387612,103.11,103.03,387.0]
[1770129088918,3.93387612,103.07,102.96,154.00067733]
[1770129089116,3.93387612,103.07,102.97,136.0907]
[1770129089310,3.93387612,103.07,102.98,136.0775]
[1770129089512,3.93387612,103.07,103.01,8.7452]
[1770129090113,3.93387612,103.07,102.99,8.7463]
[1770129091120,3.93761769,103.06,102.96,523.1331]
[1770129091316,3.93761769,103.05,102.95,136.1127]
[1770129091722,3.9813,103.04,102.95,8.75]
[1770129092124,3.9813,103.03,102.95,8.75]
[1770129092421,3.9813,103.03,102.96,8.7494]
[1770129092727,3.9813,103.03,102.94,136.1196]
[1770129092915,3.9813,103.03,102.96,8.7494]
[1770129093528,3.9813,103.03,102.93,523.2134]
[1770129093716,3.9813,103.03,102.94,136.13]
[1770129093917,3.9813,103.03,102.91,8.753]
[1770129093918,3.96445376,103.0,102.91,8.753]
[1770129094125,3.96445376,102.99,102.91,8.753]
[1770129094323,3.96445376,103.01,102.91,136.1685]
[1770129094514,3.96445376,103.01,102.92,8.7528]
[1770129094720,3.96445376,103.01,102.91,136.1685]
[1770129094923,3.96445376,103.01,102.91,136.1696]
[1770129095323,3.96445376,103.01,102.93,8.752]
[1770129095519,3.94305231,103.0,102.91,387.18]
[1770129095723,10.40080625,102.99,102.87,523.3943]
[1770129096023,3.94305231,102.97,102.87,523.3943]
[1770129096619,3.94305231,102.97,102.89,8.7554]
[1770129097635,12.69185231,102.97,102.88,8.756]
[1770129098020,3.99880014,102.96,102.87,387.18]
[1770129098225,3.99880014,102.94,102.84,136.2631]
[1770129098420,3.99880014,102.94,102.83,523.5258]
[1770129099022,12.75040014,102.94,102.85,8.7587]
[1770129099327,3.99880014,102.93,102.83,523.5258]
[1770129099521,3.99880014,102.93,102.85,8.7587]
[1770129100022,3.99423216,102.98,102.88,136.2095]
[1770129100421,3.99423216,102.97,102.87,136.2232]
[1770129100623,3.99423216,102.96,102.86,136.2347]
[1770129100923,3.99423216,102.96,102.85,136.2433]
[1770129101321,3.99423216,102.96,102.87,136.2224]
[1770129101522,146.5269861,102.99,102.88,136.207]
[1770129101922,3.99423216,102.99,102.91,8.7536]
[1770129102226,3.96383097,103.02,102.93,136.1434]
[1770129102823,12.70843097,103.02,102.94,8.751]
[1770129103124,12.70843097,103.02,102.91,142.62365394]
[1770129103125,3.96383097,103.01,102.9,136.1824]
[1770129103425,3.96383097,102.99,102.9,8.7539]
[1770129103624,114.26,103.01,102.91,136.1695]
[1770129103825,12.71230867,103.0,102.9,144.937]
[1770129104127,3.96600867,102.99,102.9,8.7539]
[1770129104323,3.96600867,102.98,102.9,8.7539]
[1770129104528,12.71410867,102.98,102.9,8.7539]
[1770129104720,12.71410867,102.98,102.89,387.44]
[1770129104929,3.96600867,102.97,102.87,136.2194]
[1770129105225,3.96600867,102.96,102.88,136.2085]
[1770129105418,3.96600867,102.96,102.87,136.214]
[1770129105620,3.93803239,102.95,102.86,136.2259]
[1770129105818,136.1737,102.91,102.79,136.3277]
[1770129106024,6.45775394,102.91,102.82,136.2896]
[1770129106321,3.93803239,102.91,102.8,137.99947856]
[1770129106523,3.93803239,102.87,102.8,1.69157856]
[1770129106825,10.39578633,102.87,102.78,484.6617]
[1770129107122,3.93803239,102.9,102.8,136.3131]
[1770129107330,3.93803239,102.9,102.81,136.3001]
[1770129107527,3.93803239,102.9,102.83,8.7603]
[1770129107730,3.93803239,102.9,102.81,0.0646056]
[1770129107926,12.69293239,102.9,102.81,0.0646056]
[1770129108224,3.77024327,102.88,102.8,136.3796056]
[1770129108430,3.77024327,102.88,102.8,0.0646056]
[1770129108825,3.77024327,102.88,102.8,136.3798056]
[1770129109026,120.95775394,102.9,102.81,0.0646056]
[1770129109331,124.72799721,102.9,102.81,0.0646056]